fUST/lending_fUST_20250716
["ID","MTS","AMOUNT","RATE_DAILY","PERIOD"]
[372364392,1752613850281,-460.0,0.00021055,2]
[372364393,1752613850291,-460.0,0.00021055,2]
[372364394,1752613850300,-460.0,0.00021055,2]
[372364395,1752613850311,-460.0,0.00021055,2]
[372364396,1752613850320,-460.0,0.00021055,2]
[372364397,1752613850330,-460.0,0.00021055,2]
[372364398,1752613850339,-460.0,0.00021055,2]
[372364399,1752613850350,-460.0,0.00021055,2]
[372364400,1752613850361,-507.18,0.00021055,2]
[372364401,1752613850370,-460.0,0.00021055,2]
[372364402,1752613850379,-460.0,0.00021055,2]
[372364403,1752613850390,-460.0,0.00021055,2]
[372364404,1752613850401,-460.0,0.00021055,2]
[372364405,1752613850411,-460.0,0.00021055,2]
[372364406,1752613850420,-460.0,0.00021055,2]
[372364407,1752613850430,-460.0,0.00021055,2]
[372364408,1752613850441,-460.0,0.00021055,2]
[372364409,1752613850451,-460.0,0.00021055,2]
[372364410,1752613850461,-460.0,0.00021055,2]
[372364411,1752613850471,-528.11373848,0.00021055,2]
[372364412,1752613850480,-822.21,0.00021055,2]
[372364413,1752613850490,-460.0,0.00021055,2]
[372364414,1752613850500,-460.0,0.00021055,2]
[372364415,1752613850510,-460.0,0.00021055,2]
[372364416,1752613850519,-460.0,0.00021055,2]
[372364417,1752613850529,-460.0,0.00021056,2]
[372364418,1752613850538,-460.0,0.00021056,2]
[372364419,1752613850548,-243.287406,0.00021056,2]
[372364420,1752613850558,-243.287414,0.00021056,2]
[372364421,1752613850568,-460.0,0.00021056,2]
[372364422,1752613850582,-460.0,0.00021056,2]
[372364423,1752613850593,-460.0,0.00021056,2]
[372364424,1752613850603,-460.0,0.00021056,2]
[372364425,1752613850612,-709.72,0.00021056,2]
[372364426,1752613850621,-474.08,0.00021056,2]
[372364427,1752613850631,-286.94368822,0.00021056,2]
[372364428,1752613850640,-1064.07,0.00021056,2]
[372364429,1752613850650,-460.0,0.00021056,2]
[372364430,1752613850660,-738.27,0.00021056,2]
[372364431,1752613850670,-460.0,0.00021058,2]
[372364432,1752613850682,-460.0,0.00021058,2]
[372364433,1752613850693,-460.0,0.00021058,2]
[372364434,1752613850703,-460.0,0.00021059,2]
[372364435,1752613850713,-500.0,0.00021073,2]
[372364436,1752613850723,-500.0,0.00021121,2]
[372364437,1752613850732,-1000.0,0.00021121,2]
[372364438,1752613850742,-1000.0,0.00021121,2]
[372364439,1752613850752,-1000.0,0.00021121,2]
[372364440,1752613850762,-1000.0,0.00021121,2]
[372364441,1752613850772,-227.0,0.0002116,2]
[372364442,1752613850782,-151.0,0.000212,3]
[372364443,1752613850792,-227.0,0.00021281,2]
[372364444,1752613850802,-1912.42397375,0.00021301,2]
[372364445,1752613850812,-227.0,0.00021311,2]
[372364446,1752613850821,-355.862382,0.00021315,2]
[372364447,1752613850831,-573.7558661,0.00021315,2]
[372364448,1752613850841,-153.1567021,0.00021315,2]
[372364449,1752613850851,-852.52,0.00021325,2]
[372364450,1752613850861,-1375.05,0.00021325,2]
[372364451,1752613850871,-460.0,0.00021325,2]
[372364452,1752613850880,-460.0,0.00021325,2]
[372364453,1752613850891,-515.97431898,0.00021325,2]
[372364454,1752613850901,-1458.17,0.00021325,2]
[372364455,1752613850910,-460.0,0.00021325,2]
[372364456,1752613850920,-1286.18,0.00021325,2]
[372364457,1752613850930,-460.0,0.00021325,2]
[372364458,1752613850939,-460.0,0.00021325,2]
[372364459,1752613850949,-460.0,0.00021325,2]
[372364460,1752613850958,-460.0,0.00021325,2]
[372364461,1752613850968,-460.0,0.00021325,2]
[372364462,1752613850978,-460.0,0.00021325,2]
[372364463,1752613850987,-1077.37,0.00021325,2]
[372364464,1752613850997,-460.0,0.00021325,2]
[372364465,1752613851007,-460.0,0.00021325,2]
[372364466,1752613851016,-460.0,0.00021325,2]
[372364467,1752613851026,-460.0,0.00021326,2]
[372364468,1752613851037,-460.0,0.00021326,2]
[372364469,1752613851047,-460.0,0.00021326,2]
[372364470,1752613851056,-460.0,0.00021326,2]
[372364471,1752613851066,-460.0,0.00021327,2]
[372364472,1752613851076,-496.26246952,0.00021327,2]
[372364473,1752613851087,-460.0,0.00021327,2]
[372364474,1752613851098,-460.0,0.00021327,2]
[372364475,1752613851108,-445.54922651,0.00021327,2]
[372364476,1752613851119,-460.0,0.00021327,2]
[372364477,1752613851130,-460.0,0.00021327,2]
[372364478,1752613851140,-460.0,0.00021327,2]
[372364479,1752613851149,-460.0,0.00021327,2]
[372364480,1752613851159,-460.0,0.00021327,2]
[372364481,1752613851170,-527.04,0.00021327,2]
[372364482,1752613851180,-460.0,0.00021327,2]
[372364483,1752613851191,-460.0,0.00021327,2]
[372364484,1752613851202,-460.0,0.00021327,2]
[372364485,1752613851215,-460.0,0.00021327,2]
[372364486,1752613851224,-460.0,0.00021327,2]
[372364487,1752613851234,-460.0,0.00021327,2]
[372364488,1752613851246,-460.0,0.00021327,2]
[372364489,1752613851258,-2276.08,0.00021327,2]
[372364490,1752613851269,-460.0,0.00021327,2]
[372364491,1752613851279,-460.0,0.00021327,2]
[372364492,1752613851289,-460.0,0.00021327,2]
[372364493,1752613851298,-460.0,0.00021327,2]
[372364494,1752613851308,-722.12,0.00021327,2]
[372364495,1752613851320,-460.0,0.00021327,2]
[372364496,1752613851331,-460.0,0.00021329,2]
[372364497,1752613851340,-460.0,0.00021329,2]
[372364498,1752613851350,-460.0,0.00021329,2]
[372364499,1752613851359,-460.0,0.00021329,2]
[372364500,1752613851369,-442.1,0.00021329,2]
[372364501,1752613851378,-460.0,0.00021329,2]
[372364502,1752613851389,-460.0,0.00021329,2]
[372364503,1752613851398,-460.0,0.00021329,2]
[372364504,1752613851408,-460.0,0.00021329,2]
[372364505,1752613851418,-460.0,0.00021329,2]
[372364506,1752613851428,-460.0,0.00021329,2]
[372364507,1752613851438,-460.0,0.00021329,2]
[372364508,1752613851447,-460.0,0.00021329,2]
[372364509,1752613851457,-460.0,0.00021329,2]
[372364510,1752613851467,-460.0,0.00021329,2]
[372364511,1752613851477,-460.0,0.00021329,2]
[372364512,1752613851487,-460.0,0.00021329,2]
[372364513,1752613851496,-460.0,0.00021329,2]
[372364514,1752613851588,-460.0,0.00021329,2]
[372364515,1752613851598,-460.0,0.00021329,2]
[372364516,1752613851607,-822.21,0.00021329,2]
[372364517,1752613851617,-184.66755445,0.00021329,2]
[372364518,1752613851627,-460.0,0.00021329,2]
[372364519,1752613851637,-460.0,0.00021329,2]
[372364520,1752613851647,-460.0,0.00021329,2]
[372364521,1752613851658,-460.0,0.0002133,2]
[372364522,1752613851668,-460.0,0.0002133,2]
[372364523,1752613851680,-460.0,0.0002133,2]
[372364524,1752613851694,-460.0,0.0002133,2]
[372364525,1752613851704,-460.0,0.0002133,2]
[372364526,1752613851715,-460.0,0.0002133,2]
[372364527,1752613851726,-709.72,0.0002133,2]
[372364528,1752613851735,-474.08,0.0002133,2]
[372364529,1752613851745,-1064.07,0.0002133,2]
[372364530,1752613851754,-460.0,0.0002133,2]
[372364531,1752613851765,-738.27,0.0002133,2]
[372364532,1752613851775,-460.0,0.00021332,2]
[372364533,1752613851784,-227.11795465,0.00021332,2]
[372364534,1752613851794,-460.0,0.00021332,2]
[372364535,1752613851804,-500.0,0.00021368,2]
[372364536,1752613851813,-1500.0,0.00021368,2]
[372364537,1752613851822,-1000.0,0.00021368,2]
[372364538,1752613851832,-500.0,0.00021368,2]
[372364539,1752613851842,-151.0,0.000214,3]
[372364540,1752613851851,-227.0,0.00021418,2]
[372364541,1752613851860,-227.0,0.00021485,2]
[372364542,1752613851870,-151.0,0.000215,3]
[372364543,1752613851880,-852.52,0.00021599,2]
[372364544,1752613851890,-1375.05,0.00021599,2]
[372364545,1752613851899,-460.0,0.00021599,2]
[372364546,1752613851909,-460.0,0.00021599,2]
[372364547,1752613851919,-1458.17,0.00021599,2]
[372364548,1752613851928,-460.0,0.00021599,2]
[372364549,1752613851938,-1286.18,0.00021599,2]
[372364550,1752613851947,-460.0,0.00021599,2]
[372364551,1752613851957,-460.0,0.00021599,2]
[372364552,1752613851967,-460.0,0.00021599,2]
[372364553,1752613851976,-460.0,0.00021599,2]
[372364554,1752613851986,-460.0,0.00021599,2]
[372364555,1752613851995,-460.0,0.00021599,2]
[372364556,1752613852004,-1077.37,0.00021599,2]
[372364557,1752613852013,-460.0,0.00021599,2]
[372364558,1752613852023,-460.0,0.00021599,2]
[372364559,1752613852032,-460.0,0.00021599,2]
[372364560,1752613852042,-460.0,0.000216,2]
[372364561,1752613852051,-460.0,0.000216,2]
[372364562,1752613852060,-460.0,0.000216,2]
[372364563,1752613852069,-460.0,0.000216,2]
[372364564,1752613852079,-460.0,0.00021601,2]
[372364565,1752613852088,-334.21962651,0.00021601,2]
[372364566,1752613852097,-305.39820781,0.00021601,2]
[372364567,1752613852107,-460.0,0.00021601,2]
[372364568,1752613852116,-460.0,0.00021601,2]
[372364569,1752613852125,-460.0,0.00021601,2]
[372364570,1752613852134,-460.0,0.00021601,2]
[372364571,1752613852143,-460.0,0.00021601,2]
[372364572,1752613852152,-527.04,0.00021601,2]
[372364573,1752613852161,-460.0,0.00021601,2]
[372364574,1752613852170,-460.0,0.00021601,2]
[372364575,1752613852180,-460.0,0.00021601,2]
[372364576,1752613852189,-460.0,0.00021601,2]
[372364577,1752613852198,-333.14751769,0.00021601,2]
[372364578,1752613852208,-460.0,0.00021601,2]
[372364579,1752613852217,-460.0,0.00021601,2]
[372364580,1752613852226,-2276.08,0.00021601,2]
[372364581,1752613852235,-460.0,0.00021601,2]
[372364582,1752613852244,-460.0,0.00021601,2]
[372364583,1752613852254,-460.0,0.00021601,2]
[372364584,1752613852263,-460.0,0.00021601,2]
[372364585,1752613852272,-722.12,0.00021601,2]
[372364586,1752613852281,-460.0,0.00021601,2]
[372364587,1752613852291,-460.0,0.00021603,2]
[372364588,1752613852300,-460.0,0.00021603,2]
[372364589,1752613852309,-460.0,0.00021603,2]
[372364590,1752613852318,-460.0,0.00021603,2]
[372364591,1752613852327,-460.0,0.00021603,2]
[372364592,1752613852336,-460.0,0.00021603,2]
[372364593,1752613852345,-460.0,0.00021603,2]
[372364594,1752613852354,-460.0,0.00021603,2]
[372364595,1752613852363,-460.0,0.00021603,2]
[372364596,1752613852373,-460.0,0.00021603,2]
[372364597,1752613852382,-460.0,0.00021603,2]
[372364598,1752613852392,-457.4395539,0.00021603,2]
[372364599,1752613852401,-460.0,0.00021603,2]
[372364600,1752613852411,-460.0,0.00021603,2]
[372364601,1752613852420,-460.0,0.00021603,2]
[372364602,1752613852429,-287.76,0.00021603,2]
[372364603,1752613852439,-460.0,0.00021603,2]
[372364604,1752613852448,-460.0,0.00021603,2]
[372364605,1752613852458,-460.0,0.00021603,2]
[372364606,1752613852467,-822.21,0.00021603,2]
[372364607,1752613852477,-460.0,0.00021603,2]
[372364608,1752613852486,-460.0,0.00021603,2]
[372364609,1752613852496,-460.0,0.00021603,2]
[372364610,1752613852505,-500.0,0.00021604,2]
[372364611,1752613852515,-460.0,0.00021604,2]
[372364612,1752613852524,-460.0,0.00021604,2]
[372364613,1752613852534,-460.0,0.00021604,2]
[372364614,1752613852543,-460.0,0.00021604,2]
[372364615,1752613852553,-460.0,0.00021604,2]
[372364616,1752613852562,-709.72,0.00021604,2]
[372364617,1752613852572,-474.08,0.00021604,2]
[372364618,1752613852581,-1064.07,0.00021604,2]
[372364619,1752613852591,-460.0,0.00021604,2]
[372364620,1752613852608,-738.27,0.00021604,2]
[372364621,1752613852623,-460.0,0.00021606,2]
[372364622,1752613852638,-460.0,0.00021606,2]
[372364623,1752613852647,-500.0,0.00021621,2]
[372364624,1752613852657,-1500.0,0.00021668,2]
[372364625,1752613852667,-1500.0,0.00021668,2]
[372364626,1752613852677,-1500.0,0.00021668,2]
[372364627,1752613852690,-1402.77,0.000217,2]
[372364628,1752613852699,-13620.51,0.000217,2]
[372364629,1752613852709,-420.0,0.00021727,2]
[372364630,1752613852718,-913.0,0.00021728,2]
[372364631,1752613852728,-227.0,0.00021728,2]
[372364632,1752613852738,-227.0,0.00021751,2]
[372364633,1752613852748,-151.0,0.000218,4]
[372364634,1752613852759,-215.0738,0.00021827,2]
[372364635,1752613852769,-227.0,0.0002185,2]
[372364636,1752613852778,-852.52,0.00021873,2]
[372364637,1752613852788,-1375.05,0.00021873,2]
[372364638,1752613852797,-460.0,0.00021873,2]
[372364639,1752613852807,-460.0,0.00021873,2]
[372364640,1752613852817,-1458.17,0.00021873,2]
[372364641,1752613852826,-460.0,0.00021873,2]
[372364642,1752613852836,-1286.18,0.00021873,2]
[372364643,1752613852847,-460.0,0.00021873,2]
[372364644,1752613852856,-460.0,0.00021873,2]
[372364645,1752613852866,-460.0,0.00021873,2]
[372364646,1752613852876,-460.0,0.00021873,2]
[372364647,1752613852885,-460.0,0.00021873,2]
[372364648,1752613852895,-460.0,0.00021873,2]
[372364649,1752613852904,-1077.37,0.00021873,2]
[372364650,1752613852915,-460.0,0.00021873,2]
[372364651,1752613852924,-460.0,0.00021873,2]
[372364652,1752613852933,-460.0,0.00021873,2]
[372364653,1752613852943,-460.0,0.00021874,2]
[372364654,1752613852952,-460.0,0.00021874,2]
[372364655,1752613852962,-460.0,0.00021874,2]
[372364656,1752613852971,-460.0,0.00021874,2]
[372364657,1752613852981,-460.0,0.00021875,2]
[372364658,1752613852990,-460.0,0.00021875,2]
[372364659,1752613853000,-460.0,0.00021875,2]
[372364660,1752613853010,-460.0,0.00021875,2]
[372364661,1752613853019,-460.0,0.00021875,2]
[372364662,1752613853029,-460.0,0.00021875,2]
[372364663,1752613853038,-527.04,0.00021875,2]
[372364664,1752613853047,-460.0,0.00021875,2]
[372364665,1752613853057,-460.0,0.00021875,2]
[372364666,1752613853067,-460.0,0.00021875,2]
[372364667,1752613853077,-460.0,0.00021875,2]
[372364668,1752613853086,-460.0,0.00021875,2]
[372364669,1752613853095,-460.0,0.00021875,2]
[372364670,1752613853104,-2276.08,0.00021875,2]
[372364671,1752613853115,-474.16415281,0.00021875,2]
[372364672,1752613853124,-460.0,0.00021875,2]
[372364673,1752613853133,-460.0,0.00021875,2]
[372364674,1752613853143,-460.0,0.00021875,2]
[372364675,1752613853153,-722.12,0.00021875,2]
[372364676,1752613853166,-460.0,0.00021875,2]
[372364677,1752613853175,-227.0,0.00021876,2]
[372364678,1752613853185,-460.0,0.00021877,2]
[372364679,1752613853195,-460.0,0.00021877,2]
[372364680,1752613853205,-183.86796153,0.00021877,2]
[372364681,1752613853216,-460.0,0.00021877,2]
[372364682,1752613853226,-460.0,0.00021877,2]
[372364683,1752613853236,-460.0,0.00021877,2]
[372364684,1752613853245,-460.0,0.00021877,2]
[372364685,1752613853255,-460.0,0.00021877,2]
[372364686,1752613853264,-155.69,0.00021877,2]
[372364687,1752613853274,-380.25,0.00021877,2]
[372364688,1752613853284,-508.8848807,0.00021877,2]
[372364689,1752613853293,-233.98,0.00021877,2]
[372364690,1752613853304,-460.0,0.00021877,2]
[372364691,1752613853313,-308.83472828,0.00021877,2]
[372364692,1752613853323,-460.0,0.00021877,2]
[372364693,1752613853412,-460.0,0.00021877,2]
[372364694,1752613853422,-460.0,0.00021877,2]
[372364695,1752613853432,-822.21,0.00021877,2]
[372364696,1752613853442,-460.0,0.00021877,2]
[372364697,1752613853452,-460.0,0.00021877,2]
[372364698,1752613853462,-460.0,0.00021877,2]
[372364699,1752613853472,-460.0,0.00021878,2]
[372364700,1752613853482,-460.0,0.00021878,2]
[372364701,1752613853493,-460.0,0.00021878,2]
[372364702,1752613853506,-460.0,0.00021878,2]
[372364703,1752613853515,-460.0,0.00021878,2]
[372364704,1752613853524,-709.72,0.00021878,2]
[372364705,1752613853534,-474.08,0.00021878,2]
[372364706,1752613853544,-1064.07,0.00021878,2]
[372364707,1752613853553,-460.0,0.00021878,2]
[372364708,1752613853563,-738.27,0.00021878,2]
[372364709,1752613853572,-460.0,0.0002188,2]
[372364710,1752613853582,-460.0,0.0002188,2]
[372364711,1752613853591,-881.02,0.000219,2]
[372364712,1752613853601,-151.0,0.000219,3]
[372364713,1752613853611,-1000.0,0.00021916,2]
[372364714,1752613853620,-500.0,0.00021932,2]
[372364715,1752613853630,-500.0,0.0002198,2]
[372364716,1752613853639,-975.6788543,0.00022,2]
[372364717,1752613853648,-370.80328516,0.00022,2]
[372364718,1752613853658,-500.0,0.00022,2]
[372364719,1752613853668,-7897.65,0.00022,7]
[372364720,1752613853678,-643.78665454,0.0002201,2]
[372364721,1752613853692,-500.0,0.0002201,2]
[372364722,1752613853702,-501.51029155,0.0002201,2]
[372364723,1752613853711,-500.0,0.0002201,2]
[372364724,1752613853721,-500.0,0.0002201,2]
[372364725,1752613853730,-501.91598495,0.0002201,2]
[372364726,1752613853740,-500.81999821,0.0002201,2]
[372364727,1752613853750,-503.46839488,0.0002201,2]
[372364728,1752613853760,-500.0,0.0002201,2]
[372364729,1752613853770,-500.0,0.0002201,2]
[372364730,1752613853780,-500.0,0.0002201,2]
[372364731,1752613853789,-167.84085401,0.0002201,2]
[372364732,1752613853799,-500.0,0.0002201,2]
[372364733,1752613853809,-500.0,0.0002201,2]
[372364734,1752613853819,-500.0,0.0002201,2]
[372364735,1752613853828,-500.0,0.0002201,2]
[372364736,1752613853838,-500.0,0.0002201,2]
[372364737,1752613853848,-500.0,0.0002201,2]
[372364738,1752613853857,-500.0,0.0002201,2]
[372364739,1752613853867,-500.0,0.0002201,2]
[372364740,1752613853877,-500.0,0.0002201,2]
[372364741,1752613853887,-500.0,0.0002201,2]
[372364742,1752613853897,-500.0,0.0002201,2]
[372364743,1752613853907,-227.0,0.00022011,2]
[372364744,1752613853916,-500.0,0.00022025,2]
[372364745,1752613853926,-500.0,0.00022025,2]
[372364746,1752613853936,-500.0,0.00022025,2]
[372364747,1752613853946,-501.03534537,0.00022025,2]
[372364748,1752613853956,-618.2699894,0.00022025,2]
[372364749,1752613853966,-151.0,0.000221,9]
[372364750,1752613853976,-968.0,0.00022132,2]
[372364751,1752613853987,-852.52,0.00022147,2]
[372364752,1752613853997,-1375.05,0.00022147,2]
[372364753,1752613854007,-460.0,0.00022147,2]
[372364754,1752613854017,-460.0,0.00022147,2]
[372364755,1752613854026,-1458.17,0.00022147,2]
[372364756,1752613854036,-460.0,0.00022147,2]
[372364757,1752613854045,-1286.18,0.00022147,2]
[372364758,1752613854056,-460.0,0.00022147,2]
[372364759,1752613854066,-460.0,0.00022147,2]
[372364760,1752613854077,-460.0,0.00022147,2]
[372364761,1752613854087,-460.0,0.00022147,2]
[372364762,1752613854099,-460.0,0.00022147,2]
[372364763,1752613854109,-460.0,0.00022147,2]
[372364764,1752613854119,-1077.37,0.00022147,2]
[372364765,1752613854132,-460.0,0.00022147,2]
[372364766,1752613854143,-460.0,0.00022147,2]
[372364767,1752613854154,-460.0,0.00022147,2]
[372364768,1752613854164,-460.0,0.00022148,2]
[372364769,1752613854180,-460.0,0.00022148,2]
[372364770,1752613854197,-460.0,0.00022148,2]
[372364771,1752613854207,-460.0,0.00022149,2]
[372364772,1752613854217,-460.0,0.00022149,2]
[372364773,1752613854227,-460.0,0.00022149,2]
[372364774,1752613854237,-460.0,0.00022149,2]
[372364775,1752613854246,-460.0,0.00022149,2]
[372364776,1752613854256,-460.0,0.00022149,2]
[372364777,1752613854266,-527.04,0.00022149,2]
[372364778,1752613854278,-460.0,0.00022149,2]
[372364779,1752613854288,-460.0,0.00022149,2]
[372364780,1752613854298,-460.0,0.00022149,2]
[372364781,1752613854308,-460.0,0.00022149,2]
[372364782,1752613854320,-460.0,0.00022149,2]
[372364783,1752613854331,-425.24,0.00022149,2]
[372364784,1752613854342,-2276.08,0.00022149,2]
[372364785,1752613854353,-460.0,0.00022149,2]
[372364786,1752613854364,-460.0,0.00022149,2]
[372364787,1752613854374,-722.12,0.00022149,2]
[372364788,1752613854384,-367.36623763,0.00022149,2]
[372364789,1752613854396,-460.0,0.00022151,2]
[372364790,1752613854408,-460.0,0.00022151,2]
[372364791,1752613854418,-460.0,0.00022151,2]
[372364792,1752613854428,-460.0,0.00022151,2]
[372364793,1752613854438,-460.0,0.00022151,2]
[372364794,1752613854449,-460.0,0.00022151,2]
[372364795,1752613854460,-460.0,0.00022151,2]
[372364796,1752613854471,-460.0,0.00022151,2]
[372364797,1752613854481,-460.0,0.00022151,2]
[372364798,1752613854493,-460.0,0.00022151,2]
[372364799,1752613854503,-460.0,0.00022151,2]
[372364800,1752613854513,-822.21,0.00022151,2]
[372364801,1752613854524,-460.0,0.00022151,2]
[372364802,1752613854534,-601.65366355,0.00022151,2]
[372364803,1752613854544,-460.0,0.00022151,2]
[372364804,1752613854554,-460.0,0.00022152,2]
[372364805,1752613854563,-460.0,0.00022152,2]
[372364806,1752613854573,-460.0,0.00022152,2]
[372364807,1752613854583,-460.0,0.00022152,2]
[372364808,1752613854592,-474.08,0.00022152,2]
[372364809,1752613854601,-709.72,0.00022152,2]
[372364810,1752613854610,-1064.07,0.00022152,2]
[372364811,1752613854620,-460.0,0.00022152,2]
[372364812,1752613854630,-738.27,0.00022152,2]
[372364813,1752613854639,-2760.2457422,0.00022152,2]
[372364814,1752613854650,-460.0,0.00022154,2]
[372364815,1752613854660,-460.0,0.00022154,2]
[372364816,1752613854669,-250.27,0.00022163,2]
[372364817,1752613854680,-2000.0,0.00022216,2]
[372364818,1752613854694,-1500.0,0.00022216,2]
[372364819,1752613854706,-1004.70318548,0.00022216,2]
[372364820,1752613854715,-227.0,0.00022278,2]
[372364821,1752613854727,-500.0,0.00022311,2]
[372364822,1752613854736,-216.77627053,0.00022311,2]
[372364823,1752613854746,-500.0,0.00022311,2]
[372364824,1752613854756,-227.0,0.00022336,2]
[372364825,1752613854766,-227.0,0.00022341,2]
[372364826,1752613854776,-227.0,0.00022398,2]
[372364827,1752613854785,-151.0,0.000224,8]
[372364828,1752613854795,-151.0,0.000224,8]
[372364829,1752613854805,-852.52,0.00022421,2]
[372364830,1752613854814,-1375.05,0.00022421,2]
[372364831,1752613854824,-460.0,0.00022421,2]
[372364832,1752613854833,-460.0,0.00022421,2]
[372364833,1752613854843,-1458.17,0.00022421,2]
[372364834,1752613854853,-460.0,0.00022421,2]
[372364835,1752613854862,-1286.18,0.00022421,2]
[372364836,1752613854874,-460.0,0.00022421,2]
[372364837,1752613854884,-460.0,0.00022421,2]
[372364838,1752613854894,-460.0,0.00022421,2]
[372364839,1752613854905,-460.0,0.00022421,2]
[372364840,1752613854916,-460.0,0.00022421,2]
[372364841,1752613854930,-460.0,0.00022421,2]
[372364842,1752613854941,-1077.37,0.00022421,2]
[372364843,1752613854953,-460.0,0.00022421,2]
[372364844,1752613854963,-460.0,0.00022421,2]
[372364845,1752613854974,-460.0,0.00022421,2]
[372364846,1752613854986,-460.0,0.00022422,2]
[372364847,1752613854996,-460.0,0.00022422,2]
[372364848,1752613855007,-460.0,0.00022422,2]
[372364849,1752613855017,-460.0,0.00022423,2]
[372364850,1752613855027,-460.0,0.00022423,2]
[372364851,1752613855037,-460.0,0.00022423,2]
[372364852,1752613855047,-460.0,0.00022423,2]
[372364853,1752613855057,-460.0,0.00022423,2]
[372364854,1752613855066,-460.0,0.00022423,2]
[372364855,1752613855076,-527.04,0.00022423,2]
[372364856,1752613855086,-460.0,0.00022423,2]
[372364857,1752613855096,-460.0,0.00022423,2]
[372364858,1752613855211,-460.0,0.00022423,2]
[372364859,1752613855221,-460.0,0.00022423,2]
[372364860,1752613855231,-460.0,0.00022423,2]
[372364861,1752613855240,-2276.08,0.00022423,2]
[372364862,1752613855250,-460.0,0.00022423,2]
[372364863,1752613855260,-460.0,0.00022423,2]
[372364864,1752613855269,-722.12,0.00022423,2]
[372364865,1752613855279,-460.0,0.00022425,2]
[372364866,1752613855288,-460.0,0.00022425,2]
[372364867,1752613855297,-460.0,0.00022425,2]
[372364868,1752613855307,-460.0,0.00022425,2]
[372364869,1752613855317,-460.0,0.00022425,2]
[372364870,1752613855326,-460.0,0.00022425,2]
[372364871,1752613855335,-460.0,0.00022425,2]
[372364872,1752613855345,-460.0,0.00022425,2]
[372364873,1752613855355,-460.0,0.00022425,2]
[372364874,1752613855364,-460.0,0.00022425,2]
[372364875,1752613855374,-323.09154179,0.00022425,2]
[372364876,1752613855383,-822.21,0.00022425,2]
[372364877,1752613855393,-460.0,0.00022425,2]
[372364878,1752613855402,-460.0,0.00022425,2]
[372364879,1752613855411,-460.0,0.00022426,2]
[372364880,1752613855421,-460.0,0.00022426,2]
[372364881,1752613855431,-460.0,0.00022426,2]
[372364882,1752613855440,-460.0,0.00022426,2]
[372364883,1752613855450,-474.08,0.00022426,2]
[372364884,1752613855459,-709.72,0.00022426,2]
[372364885,1752613855470,-1064.07,0.00022426,2]
[372364886,1752613855480,-460.0,0.00022426,2]
[372364887,1752613855490,-738.27,0.00022426,2]
[372364888,1752613855499,-460.0,0.00022428,2]
[372364889,1752613855509,-460.0,0.00022428,2]
[372364890,1752613855521,-1912.42397375,0.00022469,2]
[372364891,1752613855531,-227.0,0.00022477,2]